[Event "Late-Titled-Tuesday-Blitz-March-05-2024"]
[Site "Chess.com"]
[Date "2024.03.05"]
[Round "3"]
[White "Agibileg"]
[Black "WPWPWP-2015"]
[Result "1-0"]
[WhiteElo "2654"]
[BlackElo "2486"]
[TimeControl "180+1"]
[EndTime "14:28:40 PST"]
[Termination "Agibileg won on time"]

1. d4 {[%clk 0:03:00.7]} 1... Nf6 {[%clk 0:02:59.5]} 2. c4 {[%clk 0:03:01]} 2...
e6 {[%clk 0:02:51.7]} 3. Nc3 {[%clk 0:03:01.1]} 3... Bb4 {[%clk 0:02:51.4]} 4.
e3 {[%clk 0:03:00.4]} 4... O-O {[%clk 0:02:51.3]} 5. Bd3 {[%clk 0:03:00.1]} 5...
d5 {[%clk 0:02:50.9]} 6. a3 {[%clk 0:03:00.5]} 6... Bd6 {[%clk 0:02:50.6]} 7. c5
{[%clk 0:03:00.1]} 7... Be7 {[%clk 0:02:50.8]} 8. b4 {[%clk 0:03:00.7]} 8... b6
{[%clk 0:02:50.2]} 9. Nf3 {[%clk 0:02:58.6]} 9... a5 {[%clk 0:02:50]} 10. Bb2
{[%clk 0:02:58.8]} 10... axb4 {[%clk 0:02:49.3]} 11. axb4 {[%clk 0:02:59.2]}
11... Rxa1 {[%clk 0:02:48.9]} 12. Qxa1 {[%clk 0:03:00.1]} 12... Nc6 {[%clk
0:02:49.2]} 13. Qa4 {[%clk 0:02:57.2]} 13... Bd7 {[%clk 0:02:47.3]} 14. Bb5
{[%clk 0:02:56.7]} 14... Nb8 {[%clk 0:02:38.5]} 15. O-O {[%clk 0:02:49.1]} 15...
Bxb5 {[%clk 0:02:33]} 16. Qxb5 {[%clk 0:02:48.9]} 16... c6 {[%clk 0:02:31.7]}
17. Qd3 {[%clk 0:02:48.3]} 17... Nbd7 {[%clk 0:02:27.4]} 18. Ra1 {[%clk
0:02:47.2]} 18... Qc7 {[%clk 0:02:26.4]} 19. h3 {[%clk 0:02:38.5]} 19... b5
{[%clk 0:02:25.7]} 20. Nd2 {[%clk 0:02:16.4]} 20... e5 {[%clk 0:02:14.8]} 21.
Nb3 {[%clk 0:02:14.7]} 21... e4 {[%clk 0:02:04.4]} 22. Qe2 {[%clk 0:02:11.6]}
22... h6 {[%clk 0:02:00.9]} 23. Bc1 {[%clk 0:02:03.7]} 23... Re8 {[%clk
0:01:59.9]} 24. Ra6 {[%clk 0:02:02.4]} 24... Nb8 {[%clk 0:01:58.9]} 25. Ra3
{[%clk 0:01:58.6]} 25... Bd8 {[%clk 0:01:53.6]} 26. Qa2 {[%clk 0:01:58.4]} 26...
Qd7 {[%clk 0:01:45.7]} 27. Ra7 {[%clk 0:01:41.3]} 27... Bc7 {[%clk 0:01:43.6]}
28. Rb7 {[%clk 0:01:41.5]} 28... Re7 {[%clk 0:01:39.3]} 29. Kf1 {[%clk
0:01:32.5]} 29... Kh7 {[%clk 0:01:08]} 30. Qa7 {[%clk 0:01:27.4]} 30... Qc8
{[%clk 0:01:03.1]} 31. Bd2 {[%clk 0:01:18]} 31... Nh5 {[%clk 0:00:57.6]} 32. Be1
{[%clk 0:01:06.8]} 32... f5 {[%clk 0:00:56.9]} 33. Ne2 {[%clk 0:00:52]} 33... g5
{[%clk 0:00:51.9]} 34. Na5 {[%clk 0:00:39.4]} 34... f4 {[%clk 0:00:46.6]} 35.
Rxb8 {[%clk 0:00:36.9]} 35... Qxb8 {[%clk 0:00:40.5]} 36. Qxb8 {[%clk
0:00:37.1]} 36... Bxb8 {[%clk 0:00:39.9]} 37. Nxc6 {[%clk 0:00:37.4]} 37... Re8
{[%clk 0:00:29.2]} 38. Nc3 {[%clk 0:00:37.4]} 38... fxe3 {[%clk 0:00:25]} 39.
fxe3 {[%clk 0:00:37.2]} 39... Rf8+ {[%clk 0:00:19.7]} 40. Ke2 {[%clk 0:00:36.9]}
40... Bg3 {[%clk 0:00:11.4]} 41. Nxb5 {[%clk 0:00:25.9]} 41... Bxe1 {[%clk
0:00:09.9]} 42. Kxe1 {[%clk 0:00:26.8]} 42... Ng3 {[%clk 0:00:09.3]} 43. Nc3
{[%clk 0:00:25.6]} 43... Rf1+ {[%clk 0:00:06.9]} 44. Kd2 {[%clk 0:00:26]} 44...
Rf2+ {[%clk 0:00:06.9]} 45. Kc1 {[%clk 0:00:26.5]} 45... Nf1 {[%clk 0:00:02.9]}
46. Nxd5 {[%clk 0:00:25.6]} 46... Rxg2 {[%clk 0:00:02.1]} 47. b5 {[%clk
0:00:24.6]} 47... Nd2 {[%clk 0:00:01.8]} 48. b6 {[%clk 0:00:19.9]} 48... Nb3+
{[%clk 0:00:02.2]} 49. Kd1 {[%clk 0:00:20.3]} 1-0

[Event "Late-Titled-Tuesday-Blitz-March-05-2024"]
[Site "Chess.com"]
[Date "2024.03.05"]
[Round "3"]
[White "Jahonas"]
[Black "laziestwin"]
[Result "0-1"]
[WhiteElo "2395"]
[BlackElo "2569"]
[TimeControl "180+1"]
[EndTime "14:28:40 PST"]
[Termination "laziestwin won by checkmate"]

1. d4 {[%clk 0:03:00.9]} 1... d5 {[%clk 0:02:56.5]} 2. Nf3 {[%clk 0:03:00.9]}
2... Nf6 {[%clk 0:02:56.5]} 3. c4 {[%clk 0:03:00.9]} 3... e6 {[%clk 0:02:55.7]}
4. Nc3 {[%clk 0:03:00.4]} 4... dxc4 {[%clk 0:02:56.1]} 5. a4 {[%clk 0:02:59.1]}
5... c5 {[%clk 0:02:18.6]} 6. e3 {[%clk 0:02:54.1]} 6... Nc6 {[%clk 0:02:13.1]}
7. Bxc4 {[%clk 0:02:52.6]} 7... cxd4 {[%clk 0:02:13.4]} 8. exd4 {[%clk
0:02:50.7]} 8... Bb4 {[%clk 0:02:13.5]} 9. O-O {[%clk 0:02:49]} 9... O-O {[%clk
0:02:14.1]} 10. h3 {[%clk 0:02:29]} 10... b6 {[%clk 0:02:03.7]} 11. d5 {[%clk
0:02:15.7]} 11... Na5 {[%clk 0:02:02.2]} 12. Ba2 {[%clk 0:01:38.3]} 12... Bxc3
{[%clk 0:02:01.6]} 13. bxc3 {[%clk 0:01:37.9]} 13... Nxd5 {[%clk 0:01:43.5]} 14.
Qd3 {[%clk 0:01:21.7]} 14... Bb7 {[%clk 0:01:23]} 15. Ba3 {[%clk 0:01:13.3]}
15... Re8 {[%clk 0:01:10.5]} 16. Rfd1 {[%clk 0:01:10.2]} 16... Qf6 {[%clk
0:01:03]} 17. Nd4 {[%clk 0:01:07.8]} 17... Nf4 {[%clk 0:00:58.8]} 18. Qe3 {[%clk
0:00:34]} 18... Nxg2 {[%clk 0:00:53.6]} 19. Qg3 {[%clk 0:00:31.4]} 19... Nh4
{[%clk 0:00:48.4]} 20. Rd3 {[%clk 0:00:20.6]} 20... e5 {[%clk 0:00:36.4]} 21.
Nb5 {[%clk 0:00:18.2]} 21... Nf3+ {[%clk 0:00:33.5]} 22. Kf1 {[%clk 0:00:18.1]}
22... e4 {[%clk 0:00:32.2]} 23. Rd6 {[%clk 0:00:16.8]} 23... Qf5 {[%clk
0:00:17.8]} 24. Rad1 {[%clk 0:00:15.8]} 24... e3 {[%clk 0:00:17.4]} 25. fxe3
{[%clk 0:00:14.8]} 25... Nd2+ {[%clk 0:00:12.4]} 26. Kg1 {[%clk 0:00:14.6]}
26... Ne4 {[%clk 0:00:12.4]} 27. Qf4 {[%clk 0:00:14.3]} 27... Nxd6 {[%clk
0:00:08.9]} 28. Bxd6 {[%clk 0:00:12.8]} 28... Qxh3 {[%clk 0:00:07.5]} 29. Qg3
{[%clk 0:00:10]} 29... Qh1+ {[%clk 0:00:06.5]} 30. Kf2 {[%clk 0:00:09.7]} 30...
Qxd1 {[%clk 0:00:07.4]} 31. Bxf7+ {[%clk 0:00:08.7]} 31... Kxf7 {[%clk
0:00:06.9]} 32. Be5 {[%clk 0:00:06.8]} 32... Qd2+ {[%clk 0:00:06]} 33. Kf1
{[%clk 0:00:07.1]} 33... Qd1+ {[%clk 0:00:04.6]} 34. Kf2 {[%clk 0:00:07.3]}
34... Qd2+ {[%clk 0:00:05]} 35. Kf1 {[%clk 0:00:07.5]} 35... Qg2+ {[%clk
0:00:05.6]} 36. Qxg2 {[%clk 0:00:06.6]} 36... Bxg2+ {[%clk 0:00:06.5]} 37. Kxg2
{[%clk 0:00:06.7]} 37... Rxe5 {[%clk 0:00:07.2]} 38. Nd6+ {[%clk 0:00:06.7]}
38... Ke6 {[%clk 0:00:07.2]} 39. Nb5 {[%clk 0:00:05.3]} 39... Rxb5 {[%clk
0:00:07.7]} 40. axb5 {[%clk 0:00:05.3]} 40... Rc8 {[%clk 0:00:08.6]} 41. Kf3
{[%clk 0:00:05.9]} 41... Rxc3 {[%clk 0:00:09.3]} 42. Kf4 {[%clk 0:00:06.5]}
42... Rc5 {[%clk 0:00:10.2]} 43. e4 {[%clk 0:00:07.3]} 43... Rxb5 {[%clk
0:00:10.3]} 44. Ke3 {[%clk 0:00:07.6]} 44... Re5 {[%clk 0:00:11.2]} 45. Kd4
{[%clk 0:00:08.5]} 45... Nc6+ {[%clk 0:00:11.6]} 46. Kc4 {[%clk 0:00:08.8]}
46... g5 {[%clk 0:00:12.2]} 47. Kd3 {[%clk 0:00:08.5]} 47... g4 {[%clk
0:00:13.1]} 48. Ke3 {[%clk 0:00:09.1]} 48... h5 {[%clk 0:00:14]} 49. Kf4 {[%clk
0:00:09.2]} 49... a5 {[%clk 0:00:14.9]} 50. Kg3 {[%clk 0:00:10]} 50... a4 {[%clk
0:00:15.8]} 51. Kh4 {[%clk 0:00:10.7]} 51... a3 {[%clk 0:00:16.5]} 52. Kg3
{[%clk 0:00:11.3]} 52... a2 {[%clk 0:00:17.2]} 53. Kh4 {[%clk 0:00:12.2]} 53...
a1=Q {[%clk 0:00:17.9]} 54. Kg3 {[%clk 0:00:12.7]} 54... Qe1+ {[%clk 0:00:18.3]}
55. Kg2 {[%clk 0:00:12.4]} 55... h4 {[%clk 0:00:18.5]} 56. Kh2 {[%clk
0:00:12.8]} 56... b5 {[%clk 0:00:18.6]} 57. Kg2 {[%clk 0:00:13.7]} 57... b4
{[%clk 0:00:19.4]} 58. Kh2 {[%clk 0:00:13.9]} 58... b3 {[%clk 0:00:20.3]} 59.
Kg2 {[%clk 0:00:14.8]} 59... b2 {[%clk 0:00:20.8]} 60. Kh2 {[%clk 0:00:15.7]}
60... b1=Q {[%clk 0:00:21.4]} 61. Kg2 {[%clk 0:00:16.6]} 61... Qbxe4+ {[%clk
0:00:21.6]} 62. Kh2 {[%clk 0:00:17]} 62... Qf2# {[%clk 0:00:21.4]} 0-1

[Event "Late-Titled-Tuesday-Blitz-March-05-2024"]
[Site "Chess.com"]
[Date "2024.03.05"]
[Round "3"]
[White "Yaacovn"]
[Black "Hamisandwich"]
[Result "1-0"]
[WhiteElo "2867"]
[BlackElo "2659"]
[TimeControl "180+1"]
[EndTime "14:28:42 PST"]
[Termination "Yaacovn won on time"]

1. d4 {[%clk 0:03:00.9]} 1... d5 {[%clk 0:02:56]} 2. Nf3 {[%clk 0:02:59.3]} 2...
e6 {[%clk 0:02:55.2]} 3. Bf4 {[%clk 0:02:57.7]} 3... c5 {[%clk 0:02:51.8]} 4. e3
{[%clk 0:02:57.4]} 4... Nc6 {[%clk 0:02:51.8]} 5. c3 {[%clk 0:02:57.4]} 5... Bd6
{[%clk 0:02:51.9]} 6. Bg3 {[%clk 0:02:57.1]} 6... Nge7 {[%clk 0:02:51.9]} 7.
Nbd2 {[%clk 0:02:55.4]} 7... cxd4 {[%clk 0:02:50.1]} 8. exd4 {[%clk 0:02:55.4]}
8... f6 {[%clk 0:02:43.7]} 9. Bb5 {[%clk 0:02:48.3]} 9... a6 {[%clk 0:02:40.2]}
10. Ba4 {[%clk 0:02:46]} 10... O-O {[%clk 0:02:33.6]} 11. Qe2 {[%clk 0:02:44.9]}
11... Ng6 {[%clk 0:02:25.1]} 12. O-O {[%clk 0:02:40.3]} 12... Re8 {[%clk
0:02:05.6]} 13. Rfe1 {[%clk 0:02:39.5]} 13... Bxg3 {[%clk 0:01:45.3]} 14. hxg3
{[%clk 0:02:39]} 14... Qd6 {[%clk 0:01:42.6]} 15. Rad1 {[%clk 0:02:34.6]} 15...
Bd7 {[%clk 0:01:41.4]} 16. Nf1 {[%clk 0:02:29.6]} 16... b5 {[%clk 0:01:38.3]}
17. Bb3 {[%clk 0:02:29.1]} 17... Na5 {[%clk 0:01:35.1]} 18. Bc2 {[%clk
0:02:28.9]} 18... Nc4 {[%clk 0:01:35.2]} 19. b3 {[%clk 0:02:24.8]} 19... Nb6
{[%clk 0:01:35.3]} 20. Bxg6 {[%clk 0:02:19]} 20... hxg6 {[%clk 0:01:35]} 21. Nh4
{[%clk 0:02:19.9]} 21... g5 {[%clk 0:01:31.3]} 22. Ng6 {[%clk 0:02:20.1]} 22...
Rec8 {[%clk 0:01:20.1]} 23. Qh5 {[%clk 0:02:15]} 23... Be8 {[%clk 0:01:20.3]}
24. Ne3 {[%clk 0:02:09.5]} 24... Bxg6 {[%clk 0:01:15.9]} 25. Qxg6 {[%clk
0:02:09.1]} 25... Nd7 {[%clk 0:01:00.9]} 26. Ng4 {[%clk 0:01:51.7]} 26... Kf8
{[%clk 0:01:01.1]} 27. Re3 {[%clk 0:01:48.2]} 27... Qe7 {[%clk 0:00:55.2]} 28.
Rde1 {[%clk 0:01:46.6]} 28... Rc6 {[%clk 0:00:55.2]} 29. Qh7 {[%clk 0:01:39.9]}
29... Rac8 {[%clk 0:00:44]} 30. f4 {[%clk 0:01:28.2]} 30... gxf4 {[%clk
0:00:42.8]} 31. gxf4 {[%clk 0:01:29.1]} 31... Qf7 {[%clk 0:00:37.4]} 32. f5
{[%clk 0:01:17.5]} 32... Re8 {[%clk 0:00:30.4]} 33. Qh8+ {[%clk 0:00:59.5]}
33... Qg8 {[%clk 0:00:29.1]} 34. Qh5 {[%clk 0:00:52.4]} 34... Qf7 {[%clk
0:00:19]} 35. Qh8+ {[%clk 0:00:51.9]} 35... Qg8 {[%clk 0:00:19.3]} 36. Qh2
{[%clk 0:00:52.5]} 36... Qf7 {[%clk 0:00:17.7]} 37. Qf4 {[%clk 0:00:52]} 37...
Kg8 {[%clk 0:00:16.8]} 38. Rg3 {[%clk 0:00:49.9]} 38... Kf8 {[%clk 0:00:17]} 39.
Nh6 {[%clk 0:00:47.6]} 39... Qe7 {[%clk 0:00:12]} 40. Qg4 {[%clk 0:00:46.3]}
40... e5 {[%clk 0:00:11.5]} 41. Qg6 {[%clk 0:00:45.1]} 41... Rec8 {[%clk
0:00:08.2]} 42. Qh7 {[%clk 0:00:44.2]} 42... Ke8 {[%clk 0:00:07.5]} 43. dxe5
{[%clk 0:00:39]} 43... Nf8 {[%clk 0:00:04.7]} 44. Qxg7 {[%clk 0:00:36.1]} 44...
Qxg7 {[%clk 0:00:04.6]} 45. Rxg7 {[%clk 0:00:37]} 45... fxe5 {[%clk 0:00:03.8]}
46. Rxe5+ {[%clk 0:00:35.9]} 46... Kd8 {[%clk 0:00:04.3]} 47. Kh2 {[%clk
0:00:30.7]} 47... Rxh6+ {[%clk 0:00:03.4]} 48. Kg1 {[%clk 0:00:31.2]} 48... Rf6
{[%clk 0:00:03.9]} 49. g4 {[%clk 0:00:30.9]} 49... Rxc3 {[%clk 0:00:03.8]} 50.
g5 {[%clk 0:00:31.4]} 50... Rfc6 {[%clk 0:00:03.6]} 51. Rg8 {[%clk 0:00:31.3]}
51... Kd7 {[%clk 0:00:02.5]} 52. Rxf8 {[%clk 0:00:30.7]} 52... Rc2 {[%clk
0:00:03]} 53. Rfe8 {[%clk 0:00:29.8]} 53... Rxa2 {[%clk 0:00:01.6]} 54. R5e7+
{[%clk 0:00:29.7]} 54... Kd6 {[%clk 0:00:02]} 55. Re6+ {[%clk 0:00:30.4]} 55...
Kc5 {[%clk 0:00:02.3]} 56. Rxc6+ {[%clk 0:00:31]} 56... Kxc6 {[%clk 0:00:03.2]}
57. g6 {[%clk 0:00:31.4]} 57... Ra3 {[%clk 0:00:01.2]} 58. g7 {[%clk 0:00:31.1]}
1-0

[Event "Late-Titled-Tuesday-Blitz-March-05-2024"]
[Site "Chess.com"]
[Date "2024.03.05"]
[Round "3"]
[White "JSPrepz"]
[Black "Emp3rador"]
[Result "1/2-1/2"]
[WhiteElo "2839"]
[BlackElo "2630"]
[TimeControl "180+1"]
[EndTime "14:28:42 PST"]
[Termination "Game drawn by repetition"]

1. e4 {[%clk 0:03:00.9]} 1... e5 {[%clk 0:02:57.1]} 2. Nf3 {[%clk 0:03:00.3]}
2... Nf6 {[%clk 0:02:57.2]} 3. Nc3 {[%clk 0:03:00.3]} 3... Nc6 {[%clk
0:02:56.4]} 4. a3 {[%clk 0:03:00.5]} 4... d5 {[%clk 0:02:45.5]} 5. Bb5 {[%clk
0:03:00.9]} 5... dxe4 {[%clk 0:02:24.1]} 6. Nxe5 {[%clk 0:03:00.6]} 6... Qd6
{[%clk 0:02:18]} 7. d4 {[%clk 0:03:01]} 7... exd3 {[%clk 0:02:16.8]} 8. Bf4
{[%clk 0:03:00.6]} 8... d2+ {[%clk 0:02:14.2]} 9. Kf1 {[%clk 0:02:22.9]} 9...
Qe6 {[%clk 0:01:47.6]} 10. Bc4 {[%clk 0:02:05.7]} 10... Qf5 {[%clk 0:01:35.9]}
11. Qxd2 {[%clk 0:01:19.7]} 11... Nxe5 {[%clk 0:01:18.1]} 12. Bxe5 {[%clk
0:01:15.8]} 12... Bc5 {[%clk 0:01:08.7]} 13. Bxf6 {[%clk 0:01:09.2]} 13... Qxf6
{[%clk 0:01:04.5]} 14. Re1+ {[%clk 0:01:07.2]} 14... Kf8 {[%clk 0:00:56.4]} 15.
Ne4 {[%clk 0:00:48]} 15... Qd4 {[%clk 0:00:52.1]} 16. Qxd4 {[%clk 0:00:48.2]}
16... Bxd4 {[%clk 0:00:51]} 17. Rd1 {[%clk 0:00:49.1]} 17... Bf6 {[%clk
0:00:48.2]} 18. Nxf6 {[%clk 0:00:41.5]} 18... gxf6 {[%clk 0:00:49.1]} 19. Rd8+
{[%clk 0:00:41.5]} 19... Kg7 {[%clk 0:00:49.4]} 20. Rxh8 {[%clk 0:00:42.2]}
20... Kxh8 {[%clk 0:00:50.3]} 21. Bxf7 {[%clk 0:00:42.6]} 21... Bf5 {[%clk
0:00:49.7]} 22. Bb3 {[%clk 0:00:42.5]} 22... Rd8 {[%clk 0:00:37]} 23. Ke2 {[%clk
0:00:41.1]} 23... Re8+ {[%clk 0:00:36.4]} 24. Kd2 {[%clk 0:00:41.6]} 24... Rd8+
{[%clk 0:00:36.8]} 25. Kc1 {[%clk 0:00:36]} 25... Re8 {[%clk 0:00:37]} 26. Bc4
{[%clk 0:00:36.2]} 26... Kg7 {[%clk 0:00:34]} 27. Rd1 {[%clk 0:00:35.2]} 27...
Re7 {[%clk 0:00:33.7]} 28. h3 {[%clk 0:00:33.4]} 28... h5 {[%clk 0:00:33.7]} 29.
a4 {[%clk 0:00:27.4]} 29... Kh6 {[%clk 0:00:31.8]} 30. c3 {[%clk 0:00:26.9]}
30... h4 {[%clk 0:00:28.5]} 31. Rd4 {[%clk 0:00:25.7]} 31... Kg5 {[%clk
0:00:28]} 32. Kd2 {[%clk 0:00:25.8]} 32... b6 {[%clk 0:00:14.5]} 33. Be2 {[%clk
0:00:24.8]} 33... c5 {[%clk 0:00:14.1]} 34. Rd8 {[%clk 0:00:24.8]} 34... Rd7+
{[%clk 0:00:10.4]} 35. Rxd7 {[%clk 0:00:24.7]} 35... Bxd7 {[%clk 0:00:11.3]} 36.
b3 {[%clk 0:00:22.7]} 36... f5 {[%clk 0:00:11.5]} 37. Ke3 {[%clk 0:00:20.3]}
37... f4+ {[%clk 0:00:10.9]} 38. Kd2 {[%clk 0:00:20.7]} 38... Bc6 {[%clk
0:00:10.6]} 39. f3 {[%clk 0:00:20.1]} 39... Kf6 {[%clk 0:00:10.5]} 40. Bb5
{[%clk 0:00:18.5]} 40... Bd5 {[%clk 0:00:09]} 41. b4 {[%clk 0:00:16.9]} 41...
Ke5 {[%clk 0:00:08.3]} 42. Be8 {[%clk 0:00:16.9]} 42... a5 {[%clk 0:00:08.2]}
43. bxc5 {[%clk 0:00:13.7]} 43... bxc5 {[%clk 0:00:07.9]} 44. Kd3 {[%clk
0:00:14.3]} 44... Be6 {[%clk 0:00:06.6]} 45. c4 {[%clk 0:00:13.9]} 45... Bf5+
{[%clk 0:00:06.6]} 46. Kc3 {[%clk 0:00:13.7]} 46... Be6 {[%clk 0:00:06.7]} 47.
Bc6 {[%clk 0:00:13.3]} 47... Bf5 {[%clk 0:00:06.9]} 48. Bd5 {[%clk 0:00:12.3]}
48... Bg6 {[%clk 0:00:06.4]} 49. Bc6 {[%clk 0:00:11.5]} 49... Bf5 {[%clk
0:00:06.4]} 50. Be8 {[%clk 0:00:11.6]} 50... Kd6 {[%clk 0:00:06.6]} 51. Bf7
{[%clk 0:00:11.3]} 51... Ke5 {[%clk 0:00:06.9]} 52. Be8 {[%clk 0:00:11]} 1/2-1/2

[Event "Late-Titled-Tuesday-Blitz-March-05-2024"]
[Site "Chess.com"]
[Date "2024.03.05"]
[Round "3"]
[White "Slovak_fighter2000"]
[Black "MeisterJabo"]
[Result "1-0"]
[WhiteElo "2630"]
[BlackElo "2457"]
[TimeControl "180+1"]
[EndTime "14:28:42 PST"]
[Termination "Slovak_fighter2000 won by resignation"]

1. c4 {[%clk 0:03:00]} 1... c5 {[%clk 0:02:49.1]} 2. Nc3 {[%clk 0:02:56.6]} 2...
Nc6 {[%clk 0:02:48.4]} 3. Nf3 {[%clk 0:02:55.1]} 3... e5 {[%clk 0:02:40.9]} 4.
g3 {[%clk 0:02:48.5]} 4... g6 {[%clk 0:02:35.9]} 5. Bg2 {[%clk 0:02:48.4]} 5...
d6 {[%clk 0:02:34.1]} 6. O-O {[%clk 0:02:47.1]} 6... Bg7 {[%clk 0:02:34.1]} 7.
Ne1 {[%clk 0:02:43.3]} 7... Be6 {[%clk 0:02:33.3]} 8. d3 {[%clk 0:02:32.5]} 8...
Nge7 {[%clk 0:02:32.6]} 9. Nc2 {[%clk 0:02:22.4]} 9... d5 {[%clk 0:02:30.6]} 10.
cxd5 {[%clk 0:02:21]} 10... Nxd5 {[%clk 0:02:31.5]} 11. Bd2 {[%clk 0:02:14.8]}
11... O-O {[%clk 0:02:29.8]} 12. a3 {[%clk 0:02:07.2]} 12... Rc8 {[%clk
0:02:23.4]} 13. Rc1 {[%clk 0:01:54.8]} 13... b6 {[%clk 0:02:18.9]} 14. Nxd5
{[%clk 0:01:50.7]} 14... Bxd5 {[%clk 0:02:18.3]} 15. Bxd5 {[%clk 0:01:51]} 15...
Qxd5 {[%clk 0:02:19.2]} 16. Bc3 {[%clk 0:01:51.6]} 16... Nd4 {[%clk 0:02:17.3]}
17. Ne3 {[%clk 0:01:48.7]} 17... Qb3 {[%clk 0:02:00.3]} 18. Bxd4 {[%clk
0:01:37.6]} 18... Qxd1 {[%clk 0:01:58.4]} 19. Rfxd1 {[%clk 0:01:38.5]} 19...
exd4 {[%clk 0:01:59]} 20. Nc4 {[%clk 0:01:33.6]} 20... Rc6 {[%clk 0:01:48.8]}
21. b4 {[%clk 0:01:24]} 21... Re8 {[%clk 0:01:43.5]} 22. Kf1 {[%clk 0:01:21.6]}
22... Kf8 {[%clk 0:01:30.6]} 23. bxc5 {[%clk 0:01:05.1]} 23... Rxc5 {[%clk
0:01:30]} 24. Nd6 {[%clk 0:00:56.5]} 24... Rxc1 {[%clk 0:01:17.3]} 25. Rxc1
{[%clk 0:00:57.4]} 25... Rd8 {[%clk 0:01:17.9]} 26. Rc8 {[%clk 0:00:33]} 26...
Ke7 {[%clk 0:01:04.8]} 27. Rxd8 {[%clk 0:00:28.5]} 27... Kxd8 {[%clk 0:01:05.7]}
28. Nxf7+ {[%clk 0:00:28.5]} 28... Kd7 {[%clk 0:00:51.1]} 29. Ng5 {[%clk
0:00:23.6]} 29... b5 {[%clk 0:00:50.9]} 30. Ke1 {[%clk 0:00:19.1]} 30... Bf8
{[%clk 0:00:50]} 31. a4 {[%clk 0:00:19.2]} 31... bxa4 {[%clk 0:00:49.1]} 32. Kd1
{[%clk 0:00:19.2]} 32... h6 {[%clk 0:00:45.2]} 33. Nf3 {[%clk 0:00:18.7]} 33...
Bg7 {[%clk 0:00:39]} 34. Kc2 {[%clk 0:00:17.8]} 34... Kc6 {[%clk 0:00:39.6]} 35.
Nh4 {[%clk 0:00:14.3]} 35... g5 {[%clk 0:00:20.8]} 36. Nf5 {[%clk 0:00:14.5]}
36... Bf8 {[%clk 0:00:20.8]} 37. Nxd4+ {[%clk 0:00:14.2]} 37... Kd5 {[%clk
0:00:19.7]} 38. Nf5 {[%clk 0:00:14.2]} 38... a5 {[%clk 0:00:14.4]} 39. f4 {[%clk
0:00:14.3]} 39... gxf4 {[%clk 0:00:11.6]} 40. gxf4 {[%clk 0:00:15.2]} 40... a3
{[%clk 0:00:12.2]} 41. Kb3 {[%clk 0:00:15]} 41... a4+ {[%clk 0:00:11.1]} 42. Ka2
{[%clk 0:00:14.8]} 42... Bb4 {[%clk 0:00:09.3]} 43. e4+ {[%clk 0:00:14.8]} 43...
Kc5 {[%clk 0:00:08.5]} 44. d4+ {[%clk 0:00:13.1]} 44... Kc4 {[%clk 0:00:08.5]}
45. d5 {[%clk 0:00:13.6]} 45... Bf8 {[%clk 0:00:02.5]} 46. d6 {[%clk 0:00:13.6]}
46... Kc5 {[%clk 0:00:02.4]} 47. d7 {[%clk 0:00:13.7]} 47... Kc6 {[%clk
0:00:02.4]} 48. d8=Q {[%clk 0:00:14.1]} 1-0

[Event "Late-Titled-Tuesday-Blitz-March-05-2024"]
[Site "Chess.com"]
[Date "2024.03.05"]
[Round "3"]
[White "Smiechu"]
[Black "WindWhistler11"]
[Result "0-1"]
[WhiteElo "2350"]
[BlackElo "2550"]
[TimeControl "180+1"]
[EndTime "14:28:50 PST"]
[Termination "WindWhistler11 won by resignation"]

1. e4 {[%clk 0:03:00.9]} 1... e6 {[%clk 0:02:59.8]} 2. d4 {[%clk 0:02:59.6]}
2... d5 {[%clk 0:03:00.3]} 3. Bd3 {[%clk 0:02:59.9]} 3... Nc6 {[%clk 0:03:00.2]}
4. e5 {[%clk 0:02:56.6]} 4... Nxd4 {[%clk 0:02:58.3]} 5. Nc3 {[%clk 0:02:54.6]}
5... Nc6 {[%clk 0:02:57.9]} 6. Nf3 {[%clk 0:02:54.5]} 6... f5 {[%clk 0:02:50.8]}
7. exf6 {[%clk 0:02:53.9]} 7... Nxf6 {[%clk 0:02:50.1]} 8. O-O {[%clk
0:02:53.7]} 8... Bd6 {[%clk 0:02:49.3]} 9. Re1 {[%clk 0:02:52.5]} 9... O-O
{[%clk 0:02:49.9]} 10. Bg5 {[%clk 0:02:45.2]} 10... Bd7 {[%clk 0:02:40.4]} 11.
Nb5 {[%clk 0:02:31]} 11... Be7 {[%clk 0:02:35.4]} 12. Nbd4 {[%clk 0:02:27.4]}
12... Qc8 {[%clk 0:02:31.6]} 13. Nxc6 {[%clk 0:02:23.8]} 13... bxc6 {[%clk
0:02:29.4]} 14. Ne5 {[%clk 0:02:23.2]} 14... Be8 {[%clk 0:02:27.5]} 15. c3
{[%clk 0:02:20]} 15... Rb8 {[%clk 0:02:26.2]} 16. Qc2 {[%clk 0:02:19.8]} 16...
h6 {[%clk 0:02:09.8]} 17. Bh4 {[%clk 0:02:18.5]} 17... c5 {[%clk 0:02:07.3]} 18.
Bg6 {[%clk 0:02:09.8]} 18... Rb6 {[%clk 0:02:01.6]} 19. Re3 {[%clk 0:01:59.3]}
19... Bd6 {[%clk 0:01:59.8]} 20. Rae1 {[%clk 0:01:52.3]} 20... Bxe5 {[%clk
0:01:50.4]} 21. Rxe5 {[%clk 0:01:51.5]} 21... Bxg6 {[%clk 0:01:15.5]} 22. Qxg6
{[%clk 0:01:50.5]} 22... Qd7 {[%clk 0:01:15]} 23. b3 {[%clk 0:01:43.7]} 23...
Qf7 {[%clk 0:01:14]} 24. Qxf7+ {[%clk 0:01:28.4]} 24... Kxf7 {[%clk 0:01:12.6]}
25. c4 {[%clk 0:01:28.5]} 25... c6 {[%clk 0:01:05.8]} 26. f3 {[%clk 0:01:21.3]}
26... Re8 {[%clk 0:01:04.5]} 27. Bg3 {[%clk 0:01:20.1]} 27... Rb4 {[%clk
0:00:49.8]} 28. R1e2 {[%clk 0:00:52.7]} 28... a5 {[%clk 0:00:47.4]} 29. Be1
{[%clk 0:00:51.4]} 29... Rb7 {[%clk 0:00:38.5]} 30. Bxa5 {[%clk 0:00:50]} 30...
Nd7 {[%clk 0:00:36.5]} 31. R5e3 {[%clk 0:00:47.4]} 31... d4 {[%clk 0:00:34.2]}
32. Rd3 {[%clk 0:00:45.5]} 32... Ra8 {[%clk 0:00:26.4]} 33. Be1 {[%clk
0:00:44.9]} 33... Rba7 {[%clk 0:00:26.8]} 34. Rdd2 {[%clk 0:00:45]} 34... Nb8
{[%clk 0:00:21.6]} 35. a4 {[%clk 0:00:38.1]} 35... Rb7 {[%clk 0:00:20]} 36. Rb2
{[%clk 0:00:37.2]} 36... Na6 {[%clk 0:00:18.2]} 37. Re5 {[%clk 0:00:33.7]} 37...
Rab8 {[%clk 0:00:17.7]} 38. b4 {[%clk 0:00:24.6]} 38... Nxb4 {[%clk 0:00:10.9]}
39. Bxb4 {[%clk 0:00:19.7]} 39... Rxb4 {[%clk 0:00:10.9]} 40. Ra2 {[%clk
0:00:14]} 40... Rxc4 {[%clk 0:00:08.6]} 41. a5 {[%clk 0:00:14.4]} 41... d3
{[%clk 0:00:04]} 42. Re3 {[%clk 0:00:13]} 42... Rd4 {[%clk 0:00:03.7]} 43. Re1
{[%clk 0:00:12.3]} 43... c4 {[%clk 0:00:04.1]} 44. a6 {[%clk 0:00:12]} 44... d2
{[%clk 0:00:03.1]} 45. Rd1 {[%clk 0:00:11.4]} 45... c3 {[%clk 0:00:03.7]} 46. a7
{[%clk 0:00:11]} 46... Ra8 {[%clk 0:00:03.9]} 47. Kf2 {[%clk 0:00:11.1]} 47...
Kf6 {[%clk 0:00:02.9]} 48. Ke3 {[%clk 0:00:11.2]} 48... c5 {[%clk 0:00:03.6]}
49. Ke2 {[%clk 0:00:08.6]} 49... Rxa7 {[%clk 0:00:03.7]} 50. Ra6 {[%clk
0:00:07.1]} 50... Rxa6 {[%clk 0:00:03.4]} 0-1